[Event "Kvibergspelen 2018"]
[Site "Prioritet Serneke Arena, Krutvagen 2, Gothenburg, Sweden"]
[Date "2018.04.21"]
[Round "5.4"]
[White "Kucuksari, Kaan"]
[Black "Lindberg, Bengt"]
[Result "0-1"]
[TimeControl "15 minutes + 5 seconds per move from move one (Round 1 - 4) / 90 minutes + 30 seconds per move from move one (Round 5 - 8)"]
[WhiteTitle "FM"]
[BlackTitle "IM"]
[WhiteFideId "6380166"]
[BlackFideId "1700359"]
[WhiteElo "2251"]
[BlackElo "2385"]

1. d4 {[%clk 01:30:59]} d5 {[%clk 01:30:47]} {[%emt 00:00:13]} 2. Nf3 {[%clk
01:31:22]} {[%emt 00:00:07]} Nf6 {[%clk 01:31:09]} {[%emt 00:00:07]} 3. c4
{[%clk 01:31:47]} {[%emt 00:00:06]} e6 {[%clk 01:31:33]} {[%emt 00:00:05]} 4.
g3 {[%clk 01:32:13]} {[%emt 00:00:05]} Be7 {[%clk 01:31:57]} {[%emt 00:00:05]}
5. Bg2 {[%clk 01:32:35]} {[%emt 00:00:09]} O-O {[%clk 01:32:15]} {[%emt
00:00:11]} 6. O-O {[%clk 01:33:02]} {[%emt 00:00:03]} dxc4 {[%clk 01:32:31]}
{[%emt 00:00:15]} 7. Qa4 {[%clk 01:33:30]} {[%emt 00:00:03]} a6 {[%clk
01:32:50]} {[%emt 00:00:10]} 8. Qxc4 {[%clk 01:33:56]} {[%emt 00:00:04]} b5
{[%clk 01:33:16]} {[%emt 00:00:04]} 9. Qc2 {[%clk 01:34:20]} {[%emt 00:00:06]}
Bb7 {[%clk 01:33:40]} {[%emt 00:00:05]} 10. Bd2 {[%clk 01:34:45]} {[%emt
00:00:05]} Be4 {[%clk 01:33:50]} {[%emt 00:00:20]} 11. Qc1 {[%clk 01:35:10]}
{[%emt 00:00:06]} c6 {[%clk 01:34:08]} {[%emt 00:00:11]} 12. Rd1 {[%clk
01:35:20]} {[%emt 00:00:21]} Nbd7 {[%clk 01:34:25]} {[%emt 00:00:12]} 13. Nc3
{[%clk 01:35:01]} {[%emt 00:00:49]} Bg6 {[%clk 01:33:41]} {[%emt 00:01:14]} 14.
a3 {[%clk 01:35:28]} {[%emt 00:00:04]} Qb6 {[%clk 01:30:24]} {[%emt 00:03:45]}
15. b4 {[%clk 01:32:23]} {[%emt 00:03:36]} Rfc8 {[%clk 01:23:51]} {[%emt
00:07:02]} 16. Qb2 {[%clk 01:31:01]} {[%emt 00:01:53]} Nd5 {[%clk 01:16:48]}
{[%emt 00:07:32]} 17. Rac1 {[%clk 01:29:38]} {[%emt 00:01:55]} h6 {[%clk
01:12:49]} {[%emt 00:04:28]} 18. Be1 {[%clk 01:25:06]} {[%emt 00:05:03]} Bf6
{[%clk 01:02:44]} {[%emt 00:10:34]} 19. e3 {[%clk 01:25:06]} {[%emt 00:00:31]}
Qb8 {[%clk 00:54:56]} {[%emt 00:08:18]} 20. Nd2 {[%clk 01:14:04]} {[%emt
00:11:33]} N7b6 {[%clk 00:53:46]} {[%emt 00:01:39]} 21. Nce4 {[%clk 01:04:49]}
{[%emt 00:09:46]} Be7 {[%clk 00:54:03]} {[%emt 00:00:11]} 22. Nb3 {[%clk
01:03:29]} {[%emt 00:01:51]} Nc4 {[%clk 00:52:09]} {[%emt 00:02:24]} 23. Rxc4
{[%clk 00:58:28]} {[%emt 00:05:31]} bxc4 {[%clk 00:52:31]} {[%emt 00:00:07]} 24.
Na5 {[%clk 00:58:20]} {[%emt 00:00:39]} c5 {[%clk 00:49:56]} {[%emt 00:03:04]}
25. dxc5 {[%clk 00:49:12]} {[%emt 00:09:38]} Bxe4 {[%clk 00:44:11]} {[%emt
00:06:16]} 26. Bxe4 {[%clk 00:49:36]} {[%emt 00:00:07]} Bxc5 {[%clk 00:44:22]}
{[%emt 00:00:19]} 27. Bc3 {[%clk 00:45:46]} {[%emt 00:04:20]} Bf8 {[%clk
00:44:32]} {[%emt 00:00:18]} 28. Bxd5 {[%clk 00:42:23]} {[%emt 00:03:54]} exd5
{[%clk 00:45:00]} {[%emt 00:00:02]} 29. Rxd5 {[%clk 00:42:51]} {[%emt
00:00:02]} Qb6 {[%clk 00:45:13]} {[%emt 00:00:15]} 30. Rd4 {[%clk 00:37:07]}
{[%emt 00:06:16]} Qe6 {[%clk 00:44:15]} {[%emt 00:01:27]} 31. Qe2 {[%clk
00:36:54]} {[%emt 00:00:44]} Ra7 {[%clk 00:40:21]} {[%emt 00:04:24]} 32. Qd2
{[%clk 00:34:03]} {[%emt 00:03:21]} Rac7 {[%clk 00:40:16]} {[%emt 00:00:34]} 33.
Kg2 {[%clk 00:34:11]} {[%emt 00:00:23]} Be7 {[%clk 00:40:04]} {[%emt 00:00:42]}
34. Qd1 {[%clk 00:33:11]} {[%emt 00:01:30]} Bf6 {[%clk 00:36:26]} {[%emt
00:04:06]} 35. Rd6 {[%clk 00:33:16]} {[%emt 00:00:26]} Qe4+ {[%clk 00:36:48]}
{[%emt 00:00:08]} 36. f3 {[%clk 00:33:39]} {[%emt 00:00:07]} Qxe3 {[%clk
00:36:47]} {[%emt 00:00:30]} 37. Bxf6 {[%clk 00:31:09]} {[%emt 00:03:01]} gxf6
{[%clk 00:37:09]} {[%emt 00:00:08]} 38. f4 {[%clk 00:29:37]} {[%emt 00:02:02]}
Qe4+ {[%clk 00:31:09]} {[%emt 00:06:30]} 39. Kf2 {[%clk 00:29:22]} {[%emt
00:00:45]} Re8 {[%clk 00:30:20]} {[%emt 00:01:19]} 40. Rxf6 {[%clk 00:27:25]}
{[%emt 00:02:28]} Qe3+ {[%clk 00:26:28]} {[%emt 00:04:21]} 41. Kg2 {[%clk
00:27:41]} {[%emt 00:00:14]} Qe2+ {[%clk 00:25:38]} {[%emt 00:01:21]} 42. Qxe2
{[%clk 00:28:05]} {[%emt 00:00:06]} Rxe2+ {[%clk 00:26:04]} {[%emt 00:00:03]}
43. Kf3 {[%clk 00:28:30]} {[%emt 00:00:06]} Ra2 {[%clk 00:26:28]} {[%emt
00:00:05]} 44. Nxc4 {[%clk 00:28:48]} {[%emt 00:00:12]} Rxc4 {[%clk 00:26:37]}
{[%emt 00:00:22]} 45. Rxa6 {[%clk 00:29:08]} {[%emt 00:00:10]} Kg7 {[%clk
00:26:00]} {[%emt 00:01:06]} 46. b5 {[%clk 00:25:01]} {[%emt 00:04:38]} Rc3+
{[%clk 00:26:04]} {[%emt 00:00:26]} 47. Ke4 {[%clk 00:25:26]} {[%emt 00:00:05]}
Rcxa3 {[%clk 00:24:38]} {[%emt 00:01:56]} 48. Rxa3 {[%clk 00:25:21]} {[%emt
00:00:35]} Rxa3 {[%clk 00:25:06]} {[%emt 00:00:01]} 49. Kd5 {[%clk 00:25:42]}
{[%emt 00:00:10]} Kf6 {[%clk 00:24:31]} {[%emt 00:01:04]} 50. b6 {[%clk
00:25:15]} {[%emt 00:00:58]} Kf5 {[%clk 00:23:08]} {[%emt 00:01:52]} 51. Kd6
{[%clk 00:21:56]} {[%emt 00:03:49]} Rb3 {[%clk 00:21:53]} {[%emt 00:01:44]} 52.
Kc7 {[%clk 00:22:20]} {[%emt 00:00:07]} Kg4 {[%clk 00:22:17]} {[%emt 00:00:06]}
53. b7 {[%clk 00:21:42]} {[%emt 00:01:09]} Kh3 {[%clk 00:22:08]} {[%emt
00:00:37]} 54. b8=Q {[%clk 00:21:49]} {[%emt 00:00:24]} Rxb8 {[%clk 00:22:31]}
{[%emt 00:00:08]} 55. Kxb8 {[%clk 00:22:17]} {[%emt 00:00:02]} h5 {[%clk
00:22:40]} {[%emt 00:00:20]} 56. Kc7 {[%clk 00:21:50]} {[%emt 00:00:58]} Kxh2
{[%clk 00:23:02]} {[%emt 00:00:07]} 57. f5 {[%clk 00:21:30]} {[%emt 00:00:52]}
Kxg3 {[%clk 00:23:19]} {[%emt 00:00:13]} 58. Kd6 {[%clk 00:21:37]} {[%emt
00:00:22]} Kg4 {[%clk 00:22:32]} {[%emt 00:01:16]} 59. f6 {[%clk 00:21:22]}
{[%emt 00:00:47]} Kg5 {[%clk 00:22:51]} {[%emt 00:00:11]} 60. Ke5 {[%clk
00:21:45]} {[%emt 00:00:07]} h4 {[%clk 00:21:05]} {[%emt 00:02:15]} 0-1

[Event "Kvibergspelen 2018"]
[Site "Prioritet Serneke Arena, Krutvagen 2, Gothenburg, Sweden"]
[Date "2018.04.21"]
[Round "5.5"]
[White "Bjorklund, Thomas"]
[Black "Hillarp Persson, Tiger"]
[Result "0-1"]
[TimeControl "15 minutes + 5 seconds per move from move one (Round 1 - 4) / 90 minutes + 30 seconds per move from move one (Round 5 - 8)"]
[BlackTitle "GM"]
[WhiteFideId "1724576"]
[BlackFideId "1700812"]
[WhiteElo "2156"]
[BlackElo "2540"]

1. e4 {[%clk 01:30:53]} {[%emt 00:00:06]} g6 {[%clk 01:27:52]} {[%emt
00:03:09]} 2. d4 {[%clk 01:31:14]} {[%emt 00:00:09]} Bg7 {[%clk 01:28:15]}
{[%emt 00:00:06]} 3. Nf3 {[%clk 01:31:33]} {[%emt 00:00:11]} d6 {[%clk
01:27:53]} {[%emt 00:00:53]} 4. Be2 {[%clk 01:31:28]} {[%emt 00:00:35]} Nd7
{[%clk 01:27:01]} {[%emt 00:01:22]} 5. O-O {[%clk 01:30:41]} {[%emt 00:01:17]}
e5 {[%clk 01:26:54]} {[%emt 00:00:37]} 6. Bg5 {[%clk 01:30:37]} {[%emt
00:00:34]} Ngf6 {[%clk 01:26:38]} {[%emt 00:00:47]} 7. dxe5 {[%clk 01:26:05]}
{[%emt 00:05:02]} dxe5 {[%clk 01:26:28]} {[%emt 00:00:40]} 8. Nc3 {[%clk
01:26:07]} {[%emt 00:00:28]} h6 {[%clk 01:26:47]} {[%emt 00:00:10]} 9. Be3
{[%clk 01:25:48]} {[%emt 00:00:49]} O-O {[%clk 01:23:59]} {[%emt 00:03:18]} 10.
h3 {[%clk 01:25:26]} {[%emt 00:00:51]} Kh7 {[%clk 01:17:55]} {[%emt 00:06:34]}
11. Nd2 {[%clk 01:16:49]} {[%emt 00:09:08]} b6 {[%clk 01:01:31]} {[%emt
00:16:54]} 12. Qe1 {[%clk 01:04:52]} {[%emt 00:12:27]} Bb7 {[%clk 00:51:33]}
{[%emt 00:10:29]} 13. Rd1 {[%clk 01:03:12]} {[%emt 00:02:09]} Qe7 {[%clk
00:51:53]} {[%emt 00:00:09]} 14. a3 {[%clk 01:03:33]} {[%emt 00:00:10]} Nc5
{[%clk 00:50:45]} {[%emt 00:01:37]} 15. Bxc5 {[%clk 01:00:59]} {[%emt
00:03:05]} Qxc5 {[%clk 00:51:07]} {[%emt 00:00:07]} 16. Nb3 {[%clk 01:00:41]}
{[%emt 00:00:49]} Qe7 {[%clk 00:51:30]} {[%emt 00:00:06]} 17. Bc4 {[%clk
00:59:02]} {[%emt 00:02:10]} c6 {[%clk 00:51:22]} {[%emt 00:00:38]} 18. Nc1
{[%clk 00:56:41]} {[%emt 00:02:51]} Rad8 {[%clk 00:51:21]} {[%emt 00:00:30]} 19.
Qe2 {[%clk 00:57:01]} {[%emt 00:00:11]} b5 {[%clk 00:49:32]} {[%emt 00:02:19]}
20. Bb3 {[%clk 00:57:19]} {[%emt 00:00:13]} Rd4 {[%clk 00:48:38]} {[%emt
00:01:23]} 21. Qe3 {[%clk 00:55:53]} {[%emt 00:01:56]} a6 {[%clk 00:46:40]}
{[%emt 00:02:28]} 22. N1e2 {[%clk 00:52:50]} {[%emt 00:03:33]} c5 {[%clk
00:45:52]} {[%emt 00:01:17]} 23. Bd5 {[%clk 00:51:57]} {[%emt 00:01:24]} Bc8
{[%clk 00:33:04]} {[%emt 00:13:18]} 24. Qf3 {[%clk 00:50:24]} {[%emt 00:02:03]}
Rxd1 {[%clk 00:27:42]} {[%emt 00:05:52]} 25. Rxd1 {[%clk 00:48:32]} {[%emt
00:02:21]} Rd8 {[%clk 00:28:02]} {[%emt 00:00:10]} 26. Ng3 {[%clk 00:47:23]}
{[%emt 00:01:39]} h5 {[%clk 00:25:54]} {[%emt 00:02:38]} 27. Bc6 {[%clk
00:42:17]} {[%emt 00:05:36]} Rxd1+ {[%clk 00:25:32]} {[%emt 00:00:52]} 28. Qxd1
{[%clk 00:42:26]} {[%emt 00:00:21]} Qc7 {[%clk 00:25:38]} {[%emt 00:00:22]} 29.
Bd5 {[%clk 00:42:41]} {[%emt 00:00:17]} Bh6 {[%clk 00:23:59]} {[%emt 00:02:08]}
30. Nf1 {[%clk 00:36:48]} {[%emt 00:06:24]} Kg7 {[%clk 00:23:29]} {[%emt
00:01:00]} 31. Nh2 {[%clk 00:36:05]} {[%emt 00:01:13]} b4 {[%clk 00:21:48]}
{[%emt 00:02:11]} 32. axb4 {[%clk 00:29:50]} {[%emt 00:06:45]} cxb4 {[%clk
00:22:11]} {[%emt 00:00:07]} 33. Ne2 {[%clk 00:30:05]} {[%emt 00:00:15]} Qd6
{[%clk 00:19:29]} {[%emt 00:03:12]} 34. Qd3 {[%clk 00:29:37]} {[%emt 00:00:57]}
a5 {[%clk 00:19:46]} {[%emt 00:00:13]} 35. c4 {[%clk 00:29:48]} {[%emt
00:00:19]} a4 {[%clk 00:19:06]} {[%emt 00:01:09]} 36. Nf3 {[%clk 00:29:44]}
{[%emt 00:00:34]} Nd7 {[%clk 00:18:14]} {[%emt 00:01:22]} 37. Qc2 {[%clk
00:29:57]} {[%emt 00:00:18]} Nc5 {[%clk 00:18:22]} {[%emt 00:00:22]} 38. Ne1
{[%clk 00:28:15]} {[%emt 00:02:12]} Bg5 {[%clk 00:11:20]} {[%emt 00:07:31]} 39.
Nd3 {[%clk 00:28:20]} {[%emt 00:00:26]} Nxd3 {[%clk 00:11:08]} {[%emt
00:00:42]} 40. Qxd3 {[%clk 00:28:41]} {[%emt 00:00:09]} Bd8 {[%clk 00:11:18]}
{[%emt 00:00:19]} 41. Qf3 {[%clk 00:25:40]} {[%emt 00:03:31]} f6 {[%clk
00:11:39]} {[%emt 00:00:09]} 42. Nc1 {[%clk 00:25:57]} {[%emt 00:00:13]} Bb6
{[%clk 00:11:50]} {[%emt 00:00:19]} 43. Nd3 {[%clk 00:25:54]} {[%emt 00:00:33]}
a3 {[%clk 00:11:42]} {[%emt 00:00:39]} 44. bxa3 {[%clk 00:25:37]} {[%emt
00:00:48]} bxa3 {[%clk 00:12:04]} {[%emt 00:00:07]} 45. Qd1 {[%clk 00:24:41]}
{[%emt 00:01:25]} Bd4 {[%clk 00:05:35]} {[%emt 00:07:00]} 46. c5 {[%clk
00:23:04]} {[%emt 00:02:07]} Qa6 {[%clk 00:04:18]} {[%emt 00:01:46]} 47. Qb1
{[%clk 00:20:28]} {[%emt 00:03:07]} h4 {[%clk 00:02:23]} {[%emt 00:02:25]} 48.
Kh2 {[%clk 00:16:34]} {[%emt 00:04:24]} Bd7 {[%clk 00:01:16]} {[%emt 00:01:38]}
49. c6 {[%clk 00:13:08]} {[%emt 00:03:56]} Bxc6 {[%clk 00:01:40]} {[%emt
00:00:05]} 50. Nb4 {[%clk 00:09:46]} {[%emt 00:03:52]} Bxd5 {[%clk 00:02:00]}
{[%emt 00:00:10]} 51. Nxa6 {[%clk 00:06:57]} {[%emt 00:03:20]} a2 {[%clk
00:02:22]} {[%emt 00:00:07]} 52. Qf1 {[%clk 00:07:12]} {[%emt 00:00:14]} Bf7
{[%clk 00:02:41]} {[%emt 00:00:11]} 0-1

[Event "Kvibergspelen 2018"]
[Site "Prioritet Serneke Arena, Krutvagen 2, Gothenburg, Sweden"]
[Date "2018.04.21"]
[Round "5.6"]
[White "Rydstrom, Tom"]
[Black "Strom, Leif"]
[Result "1-0"]
[TimeControl "15 minutes + 5 seconds per move from move one (Round 1 - 4) / 90 minutes + 30 seconds per move from move one (Round 5 - 8)"]
[WhiteTitle "FM"]
[WhiteFideId "1714830"]
[BlackFideId "1709410"]
[WhiteElo "2357"]
[BlackElo "2111"]

1. e4 {[%clk 01:29:08]} {[%emt 00:01:50]} g6 {[%clk 01:30:52]} {[%emt
00:00:11]} 2. d4 {[%clk 01:29:14]} {[%emt 00:00:24]} Bg7 {[%clk 01:31:14]}
{[%emt 00:00:08]} 3. Nc3 {[%clk 01:29:40]} {[%emt 00:00:05]} d6 {[%clk
01:31:37]} {[%emt 00:00:07]} 4. Be3 {[%clk 01:29:34]} {[%emt 00:00:35]} a6
{[%clk 01:32:00]} {[%emt 00:00:08]} 5. Qd2 {[%clk 01:29:29]} {[%emt 00:00:35]}
Nd7 {[%clk 01:32:21]} {[%emt 00:00:08]} 6. h4 {[%clk 01:27:42]} {[%emt
00:02:18]} h5 {[%clk 01:32:11]} {[%emt 00:00:40]} 7. O-O-O {[%clk 01:22:35]}
{[%emt 00:05:36]} b5 {[%clk 01:31:35]} {[%emt 00:01:07]} 8. Nh3 {[%clk
01:21:10]} {[%emt 00:01:55]} Bb7 {[%clk 01:27:44]} {[%emt 00:04:21]} 9. Ng5
{[%clk 01:20:56]} {[%emt 00:00:44]} Rc8 {[%clk 01:26:20]} {[%emt 00:01:54]} 10.
Kb1 {[%clk 01:19:19]} {[%emt 00:02:07]} c5 {[%clk 01:25:12]} {[%emt 00:01:38]}
11. f3 {[%clk 01:12:52]} {[%emt 00:06:57]} Qa5 {[%clk 01:21:37]} {[%emt
00:04:05]} 12. Qf2 {[%clk 01:07:54]} {[%emt 00:05:28]} cxd4 {[%clk 01:17:34]}
{[%emt 00:04:33]} 13. Bxd4 {[%clk 01:08:22]} {[%emt 00:00:02]} Bxd4 {[%clk
01:17:43]} {[%emt 00:00:21]} 14. Qxd4 {[%clk 01:08:50]} {[%emt 00:00:02]} Ngf6
{[%clk 01:17:55]} {[%emt 00:00:18]} 15. Qd2 {[%clk 01:04:58]} {[%emt 00:04:22]}
b4 {[%clk 00:58:47]} {[%emt 00:19:37]} 16. Ne2 {[%clk 01:05:05]} {[%emt
00:00:21]} Ne5 {[%clk 00:56:04]} {[%emt 00:03:16]} 17. Nd4 {[%clk 01:01:24]}
{[%emt 00:04:11]} Qb6 {[%clk 00:52:40]} {[%emt 00:03:55]} 18. Be2 {[%clk
00:54:17]} {[%emt 00:07:36]} O-O {[%clk 00:52:11]} {[%emt 00:00:59]} 19. g4
{[%clk 00:46:59]} {[%emt 00:07:48]} Nc4 {[%clk 00:39:58]} {[%emt 00:12:43]} 20.
Bxc4 {[%clk 00:44:47]} {[%emt 00:02:43]} Rxc4 {[%clk 00:40:27]} 21. gxh5 {[%clk
00:39:57]} {[%emt 00:05:19]} Nxh5 {[%clk 00:39:44]} {[%emt 00:01:13]} 22. Rhg1
{[%clk 00:36:51]} {[%emt 00:03:36]} Rfc8 {[%clk 00:28:17]} {[%emt 00:11:57]} 23.
b3 {[%clk 00:32:10]} {[%emt 00:05:11]} R4c5 {[%clk 00:27:15]} {[%emt 00:01:32]}
24. Nge6 {[%clk 00:29:52]} {[%emt 00:02:48]} Kh7 {[%clk 00:17:42]} {[%emt
00:10:04]} 25. Nxc5 {[%clk 00:29:46]} {[%emt 00:00:36]} dxc5 {[%clk 00:18:00]}
{[%emt 00:00:12]} 26. Nf5 {[%clk 00:25:20]} {[%emt 00:04:55]} gxf5 {[%clk
00:17:31]} {[%emt 00:00:59]} 27. Qg5 {[%clk 00:25:48]} {[%emt 00:00:02]} Qh6
{[%clk 00:17:34]} {[%emt 00:00:27]} 28. Qxe7 {[%clk 00:25:45]} {[%emt
00:00:33]} Qf6 {[%clk 00:09:46]} {[%emt 00:08:18]} 29. Qxb7 {[%clk 00:26:02]}
{[%emt 00:00:14]} Re8 {[%clk 00:10:11]} {[%emt 00:00:05]} 30. Rg5 {[%clk
00:24:51]} {[%emt 00:01:41]} Nf4 {[%clk 00:10:22]} {[%emt 00:00:19]} 31. Rxf5
{[%clk 00:24:58]} {[%emt 00:00:22]} 1-0

[Event "Kvibergspelen 2018"]
[Site "Prioritet Serneke Arena, Krutvagen 2, Gothenburg, Sweden"]
[Date "2018.04.21"]
[Round "5.7"]
[White "Eriksson, Lennarth"]
[Black "Al Hadarani, Hatim"]
[Result "1/2-1/2"]
[TimeControl "15 minutes + 5 seconds per move from move one (Round 1 - 4) / 90 minutes + 30 seconds per move from move one (Round 5 - 8)"]
[BlackTitle "FM"]
[WhiteFideId "1707736"]
[BlackFideId "9400273"]
[WhiteElo "2098"]
[BlackElo "2334"]

1. b3 {[%clk 01:30:39]} {[%emt 00:00:20]} f5 {[%clk 01:18:36]} {[%emt
00:12:24]} 2. Bb2 {[%clk 01:28:02]} {[%emt 00:03:08]} Nf6 {[%clk 01:16:38]}
{[%emt 00:02:29]} 3. e3 {[%clk 01:25:41]} {[%emt 00:02:50]} e6 {[%clk
01:16:18]} {[%emt 00:00:49]} 4. c4 {[%clk 01:25:29]} {[%emt 00:00:43]} Be7
{[%clk 01:11:01]} {[%emt 00:05:46]} 5. Nc3 {[%clk 01:22:22]} {[%emt 00:03:38]}
O-O {[%clk 01:11:09]} {[%emt 00:00:22]} 6. Qc2 {[%clk 01:21:58]} {[%emt
00:00:53]} d5 {[%clk 01:06:10]} {[%emt 00:05:29]} 7. Nf3 {[%clk 01:18:32]}
{[%emt 00:03:57]} c6 {[%clk 00:52:51]} {[%emt 00:13:49]} 8. Be2 {[%clk
01:15:04]} {[%emt 00:03:58]} Bd6 {[%clk 00:50:23]} {[%emt 00:02:58]} 9. d4
{[%clk 01:07:58]} {[%emt 00:07:36]} Ne4 {[%clk 00:47:17]} {[%emt 00:03:36]} 10.
Ne5 {[%clk 01:01:45]} {[%emt 00:06:42]} Nd7 {[%clk 00:45:20]} {[%emt 00:02:27]}
11. Nxe4 {[%clk 01:00:55]} {[%emt 00:01:20]} fxe4 {[%clk 00:45:23]} {[%emt
00:00:28]} 12. O-O {[%clk 00:57:19]} {[%emt 00:04:05]} Qg5 {[%clk 00:45:02]}
{[%emt 00:00:51]} 13. Qc3 {[%clk 00:56:46]} {[%emt 00:01:04]} Qh6 {[%clk
00:32:13]} {[%emt 00:13:19]} 14. f4 {[%clk 00:54:45]} {[%emt 00:02:31]} exf3
{[%clk 00:30:27]} {[%emt 00:02:15]} 15. Rxf3 {[%clk 00:46:04]} {[%emt
00:09:12]} Rxf3 {[%clk 00:30:29]} {[%emt 00:00:28]} 16. gxf3 {[%clk 00:42:17]}
{[%emt 00:04:16]} Nf6 {[%clk 00:27:53]} {[%emt 00:03:07]} 17. Rf1 {[%clk
00:40:23]} {[%emt 00:02:23]} Bd7 {[%clk 00:27:06]} {[%emt 00:01:18]} 18. Bc1
{[%clk 00:36:46]} {[%emt 00:04:06]} Rf8 {[%clk 00:26:23]} {[%emt 00:01:14]} 19.
Kh1 {[%clk 00:27:21]} {[%emt 00:09:55]} Be8 {[%clk 00:25:36]} {[%emt 00:01:17]}
20. Rg1 {[%clk 00:26:56]} {[%emt 00:00:55]} Qh5 {[%clk 00:14:09]} {[%emt
00:11:56]} 21. Rg2 {[%clk 00:21:22]} {[%emt 00:06:04]} Bxe5 {[%clk 00:13:54]}
{[%emt 00:00:46]} 22. dxe5 {[%clk 00:20:56]} {[%emt 00:00:55]} Nd7 {[%clk
00:13:39]} {[%emt 00:00:45]} 23. f4 {[%clk 00:18:35]} {[%emt 00:02:51]} Qh6
{[%clk 00:11:00]} {[%emt 00:03:09]} 24. cxd5 {[%clk 00:16:57]} {[%emt
00:02:08]} exd5 {[%clk 00:08:45]} {[%emt 00:02:46]} 25. Bg4 {[%clk 00:14:43]}
{[%emt 00:02:44]} b6 {[%clk 00:07:20]} {[%emt 00:01:56]} 26. b4 {[%clk
00:13:09]} {[%emt 00:02:03]} c5 {[%clk 00:06:24]} {[%emt 00:01:26]} 27. e6
{[%clk 00:09:31]} {[%emt 00:04:08]} Nf6 {[%clk 00:06:53]} {[%emt 00:00:01]} 28.
e7 {[%clk 00:09:48]} {[%emt 00:00:12]} Rf7 {[%clk 00:07:14]} {[%emt 00:00:09]}
29. Be6 {[%clk 00:10:06]} {[%emt 00:00:11]} d4 {[%clk 00:06:26]} {[%emt
00:01:17]} 30. exd4 {[%clk 00:07:35]} {[%emt 00:03:03]} Kh8 {[%clk 00:01:31]}
{[%emt 00:05:24]} 31. f5 {[%clk 00:05:58]} {[%emt 00:02:08]} Qh5 {[%clk
00:01:44]} {[%emt 00:00:18]} 32. Bxf7 {[%clk 00:06:05]} {[%emt 00:00:22]} Qd1
{[%clk 00:00:48]} {[%emt 00:01:26]} 33. Rg1 {[%clk 00:06:05]} {[%emt 00:00:31]}
Bc6 {[%clk 00:01:06]} {[%emt 00:00:11]} 34. d5 {[%clk 00:06:17]} {[%emt
00:00:18]} Bxd5 {[%clk 00:01:23]} {[%emt 00:00:13]} 35. Bxd5 {[%clk 00:06:08]}
{[%emt 00:00:38]} Qxd5 {[%clk 00:01:45]} {[%emt 00:00:09]} 36. Rg2 {[%clk
00:06:15]} {[%emt 00:00:23]} 1/2-1/2

[Event "Kvibergspelen 2018"]
[Site "Prioritet Serneke Arena, Krutvagen 2, Gothenburg, Sweden"]
[Date "2018.04.21"]
[Round "5.8"]
[White "Storme, Isak"]
[Black "Karlsson, Jorgen"]
[Result "1-0"]
[TimeControl "15 minutes + 5 seconds per move from move one (Round 1 - 4) / 90 minutes + 30 seconds per move from move one (Round 5 - 8)"]
[WhiteTitle "CM"]
[WhiteFideId "1728113"]
[BlackFideId "1711679"]
[WhiteElo "2323"]
[BlackElo "2045"]

1. e4 {[%clk 01:30:57]} {[%emt 00:00:03]} g6 {[%clk 01:30:57]} {[%emt
00:00:04]} 2. d4 {[%clk 01:31:22]} {[%emt 00:00:05]} Bg7 {[%clk 01:31:23]}
{[%emt 00:00:03]} 3. Nc3 {[%clk 01:31:45]} {[%emt 00:00:06]} a6 {[%clk
01:31:29]} {[%emt 00:00:25]} 4. h4 {[%clk 01:30:50]} {[%emt 00:01:25]} h5
{[%clk 01:31:53]} {[%emt 00:00:06]} 5. Nh3 {[%clk 01:30:39]} {[%emt 00:00:41]}
d6 {[%clk 01:31:59]} {[%emt 00:00:24]} 6. Ng5 {[%clk 01:30:43]} {[%emt
00:00:26]} Nc6 {[%clk 01:27:10]} {[%emt 00:05:20]} 7. Be3 {[%clk 01:21:54]}
{[%emt 00:09:19]} e5 {[%clk 01:22:02]} {[%emt 00:05:38]} 8. dxe5 {[%clk
01:19:08]} {[%emt 00:03:16]} Nxe5 {[%clk 01:20:53]} {[%emt 00:01:39]} 9. f4
{[%clk 01:17:18]} {[%emt 00:02:19]} Ng4 {[%clk 01:20:41]} {[%emt 00:00:42]} 10.
Bd4 {[%clk 01:17:36]} {[%emt 00:00:11]} N8f6 {[%clk 01:15:09]} {[%emt
00:06:03]} 11. e5 {[%clk 01:13:47]} {[%emt 00:04:19]} dxe5 {[%clk 01:13:45]}
{[%emt 00:01:53]} 12. fxe5 {[%clk 01:13:58]} {[%emt 00:00:19]} Nh7 {[%clk
01:13:17]} {[%emt 00:00:58]} 13. Nxh7 {[%clk 00:55:18]} {[%emt 00:19:11]} Rxh7
{[%clk 01:13:39]} {[%emt 00:00:07]} 14. Ne4 {[%clk 00:41:25]} {[%emt 00:14:22]}
Nxe5 {[%clk 01:08:41]} {[%emt 00:05:28]} 15. Ng5 {[%clk 00:40:49]} {[%emt
00:01:06]} Qe7 {[%clk 01:08:38]} {[%emt 00:00:34]} 16. Be2 {[%clk 00:39:07]}
{[%emt 00:02:11]} Rh8 {[%clk 01:07:45]} {[%emt 00:01:23]} 17. O-O {[%clk
00:38:30]} {[%emt 00:01:08]} Bf5 {[%clk 01:06:12]} {[%emt 00:02:04]} 18. Bc3
{[%clk 00:31:35]} {[%emt 00:07:24]} Rd8 {[%clk 01:03:45]} {[%emt 00:02:57]} 19.
Qe1 {[%clk 00:29:14]} {[%emt 00:02:51]} Rd7 {[%clk 01:00:41]} {[%emt 00:03:34]}
20. Kh1 {[%clk 00:26:53]} {[%emt 00:02:50]} Kd8 {[%clk 00:49:39]} {[%emt
00:11:33]} 21. Qf2 {[%clk 00:21:54]} {[%emt 00:05:27]} Qd6 {[%clk 00:38:07]}
{[%emt 00:12:04]} 22. Rad1 {[%clk 00:20:41]} {[%emt 00:01:43]} Qb6 {[%clk
00:34:35]} {[%emt 00:04:04]} 23. Qxb6 {[%clk 00:20:24]} {[%emt 00:00:47]} cxb6
{[%clk 00:34:58]} {[%emt 00:00:06]} 24. Bxe5 {[%clk 00:20:27]} {[%emt
00:00:27]} 1-0